[Event "SixDays Budapest IM-A January 2024"]
[Site "Budapest"]
[Date "2024.01.28"]
[Round "3.3"]
[White "Balla, Tamas-Kristof"]
[Black "Hacker, Jonas"]
[Result "1-0"]
[ECO "A06"]
[WhiteElo "2283"]
[BlackElo "2420"]
[Annotator "TA"]
[PlyCount "85"]
[EventDate "2024.01.26"]
[EventType "tourn"]
[EventCountry "HUN"]
[SourceTitle "playchess.com"]
[Source "ChessBase"]
[SourceQuality "1"]
[TimeControl "5400+30"]

{[%evp 9,85,-4,11,4,20,11,8,6,8,0,19,-22,-16,-25,-20,-33,1,0,0,0,12,0,91,94,87,90,93,80,100,90,134,130,168,138,305,141,150,135,150,159,232,222,251,227,296,295,315,310,293,275,285,256,252,0,295,288,268,234,380,368,361,379,498,461,656,675,775,696,819,812,829,576,822,822,822,697,588,570]} 1. Nf3 {[%emt 0:06:16]} d5 {[%emt 0:00:20]} 2. b3 {[%emt 0:00:05]} Bg4 {[%emt 0:08:09]} 3. Bb2 {[%emt 0:00:18]} Nd7 {[%emt 0:00:35]} 4. e3 {[%emt 0:00:10]} Ngf6 {[%emt 0:03:56]} 5. d3 {[%emt 0:00:35]} e6 {[%emt 0:02:13]} 6. Nbd2 {[%emt 0:00:15]} Bb4 {[%emt 0:05:26]} 7. a3 {[%emt 0:03:24]} Bxf3 {[%emt 0:02:28]} 8. gxf3 {[%emt 0:05:27][%cal Bg2f3,Bf3f4][%mdl 32] Die Stellung ist ausgeglichen.} Bd6 {[%emt 0:01:39]} 9. f4 {[%emt 0:01:23]} O-O {[%emt 0:04:14]} 10. Nf3 {[%emt 0:00:20]} c5 {[%emt 0:03:22]} 11. Bg2 {[%emt 0:10:27]} Qc7 {[%emt 0:03:00]} 12. c4 {[%emt 0:02:53]} e5 {[%emt 0:05:49]} 13. fxe5 {[%emt 0:02:33]} Nxe5 {[%emt 0:02:47]} 14. cxd5 {[%emt 0:06:19]} Nxd5 {[%emt 0:03:09]} 15. Qc2 {[%emt 0:02:10] [#] Und jetzt Nxe5 wäre schön.} Nf6 {[%emt 0:05:46]} (15... Rad8 $11 {bleibt in der Remisbreite.}) 16. Nxe5 $16 {[%emt 0:04:25]} Bxe5 {[%emt 0:01:34]} 17. d4 {[%emt 0:00:02]} cxd4 {[%emt 0:05:30]} 18. Qxc7 {[%emt 0:00:31]} Bxc7 {[%emt 0:00:01]} 19. Bxd4 {[%emt 0:00:13]} (19. exd4 Rfe8+ 20. Kf1 Ne4 $15) 19... Rfd8 {[%emt 0:00:34]} 20. Ke2 {[%emt 0:10:57]} ({Finger weg von} 20. Bxb7 Rab8 21. Bc6 Rxb3 $14) 20... Nd5 {[%emt 0:05:24][%cal Od5f4]} 21. Rhd1 {[%emt 0:03:36]} Rab8 $2 {[%emt 0:11:52]} (21... Bxh2 $16 22. Rac1 Nb6) 22. Bxd5 {[%emt 0:06:51]} (22. Bxa7 Nc3+ 23. Ke1 Rxd1+ 24. Rxd1 Nxd1 25. Bxb8 Nxe3 26. Bxc7 Nxg2+ 27. Ke2 f5 $16) (22. Rac1 $18 Bb6 23. Be5) 22... Rxd5 {[%emt 0:00:01]} 23. Bxa7 {[%emt 0:00:18]} Rxd1 {[%emt 0:02:14]} 24. Rxd1 $18 {[%emt 0:00:15][%mdl 4096] Endspiel. KRB-KRB} Ra8 {[%emt 0:04:20] [#]} (24... Rd8 $16) 25. Rd7 $1 {[%emt 0:01:30]} Rc8 {[%emt 0:00:45]} 26. Bd4 {[%emt 0:05:13]} h5 {[%emt 0:02:04]} 27. h3 {[%emt 0:00:16]} Kf8 {[%emt 0:00:44]} 28. Bc5+ {[%emt 0:02:05]} Kg8 {[%emt 0:00:02]} 29. Be7 {[%emt 0:02:52]} Kh7 {[%emt 0:01:13]} 30. Rd5 {[%emt 0:02:53]} Re8 {[%emt 0:00:35]} 31. Rd7 {[%emt 0:08:37]} (31. Rxh5+ Kg6 32. Rb5 (32. Rg5+ Kh6 $17) 32... Rxe7 33. Rxb7 Kf6 $15) 31... Rc8 {[%emt 0:00:19]} 32. Kd3 {[%emt 0:01:06]} Kg6 {[%emt 0:01:28]} 33. Ke4 {[%emt 0:00:35]} Kh6 {[%emt 0:01:48]} (33... b5 $142 34. f4 Kh7) 34. f4 {[%emt 0:01:56]} Kg6 {[%emt 0:01:10]} 35. a4 {[%emt 0:01:05][%cal Ba3a4,Ba4a5][%mdl 32]} Kh6 {[%emt 0:01:17]} 36. b4 {[%emt 0:01:33][%cal Bb3b4,Bb4a5][%mdl 32] Weiß steht klar auf Gewinn.} Kg6 {[%emt 0:00:05]} (36... b6 $142 37. Kf5 Kh7) 37. a5 {[%emt 0:01:39]} Kh6 {[%emt 0:00:03]} 38. h4 {[%emt 0:00:52]} Kg6 {[%emt 0:00:29]} 39. Bg5 {[%emt 0:01:59]} Re8+ {[%emt 0:03:12]} 40. Kf3 {[%emt 0:01:05]} Bxa5 {[%emt 0:01:43]} 41. bxa5 {[%emt 0:00:48]} f6 {[%emt 0:00:14]} 42. f5+ {[%emt 0:00:54]} Kxf5 {[%emt 0:00:03]} 43. Bf4 {[%emt 0:00:07] Gewichteter Fehlerwert: Weiß=0.28 (präzise) /Schwarz=0.37.  Verlustzug:     	---       	Schwarz=1     Gewinn verpasst:   	Weiß=1     	---        Fehler:       	---       	Schwarz=4     Ungenau:       	Weiß=1     	Schwarz=4     OK:         	Weiß=13    	Schwarz=9     Bester:       	Weiß=1     	Schwarz=2} 1-0

[Event "SixDays Budapest IM-A January 2024"]
[Site "Budapest"]
[Date "2024.01.28"]
[Round "3.4"]
[White "Vetokhina, Sofia"]
[Black "Szalay-Ocsak, Bank"]
[Result "1/2-1/2"]
[ECO "E36"]
[WhiteElo "2020"]
[BlackElo "2165"]
[Annotator "NA RC"]
[PlyCount "76"]
[EventDate "2024.01.26"]
[EventType "tourn"]
[EventCountry "HUN"]
[SourceTitle "playchess.com"]
[Source "ChessBase"]
[SourceQuality "1"]
[TimeControl "5400+30"]

1. d4 {[%emt 0:00:03]} Nf6 {[%emt 0:00:13]} 2. c4 {[%emt 0:00:09]} e6 {[%emt 0:00:17]} 3. Nc3 {[%emt 0:00:21]} Bb4 {[%emt 0:00:52]} 4. Qc2 {[%emt 0:00:11]} d5 {[%emt 0:02:14]} 5. a3 {[%emt 0:00:09]} Bxc3+ {[%emt 0:03:49]} 6. Qxc3 {[%emt 0:00:10]} b6 {[%emt 0:05:31]} 7. Bg5 {[%emt 0:03:49]} h6 {[%emt 0:08:04]} 8. Bxf6 {[%emt 0:00:17]} Qxf6 {[%emt 0:00:25]} 9. cxd5 {[%emt 0:02:30]} exd5 {[%emt 0:04:18]} 10. Nf3 {[%emt 0:02:16]} O-O {[%emt 0:02:39]} 11. e3 {[%emt 0:01:01]} c5 {[%emt 0:18:19]} 12. Bd3 {[%emt 0:03:22]} c4 {[%emt 0:01:04]} 13. Bc2 {[%emt 0:01:20]} Bf5 {[%emt 0:07:00]} 14. Ne5 {[%emt 0:05:28]} Nd7 {[%emt 0:03:56]} 15. Nxd7 {[%emt 0:07:12]} Bxd7 {[%emt 0:00:07]} 16. O-O {[%emt 0:00:16]} Bf5 {[%emt 0:04:47]} 17. a4 {[%emt 0:04:09]} Bxc2 {[%emt 0:01:58]} 18. Qxc2 {[%emt 0:00:07]} Qe6 {[%emt 0:01:55]} 19. Rfe1 {[%emt 0:07:33]} a6 {[%emt 0:08:44]} 20. Rad1 {[%emt 0:15:36]} f5 {[%emt 0:02:18]} 21. f3 {[%emt 0:00:28]} Rae8 {[%emt 0:07:41]} 22. Re2 {[%emt 0:05:34]} b5 {[%emt 0:00:30]} 23. Rde1 {[%emt 0:01:48]} Qb6 {[%emt 0:03:40]} 24. axb5 {[%emt 0:06:35]} axb5 {[%emt 0:00:08]} 25. Qd2 {[%emt 0:00:13]} b4 {[%emt 0:03:56]} 26. Kh1 {[%emt 0:04:18]} Rc8 {[%emt 0:02:32]} 27. h3 {[%emt 0:01:03]} c3 {[%emt 0:02:11]} 28. bxc3 {[%emt 0:01:28]} bxc3 {[%emt 0:00:03]} 29. Qd3 {[%emt 0:00:14]} Qb4 {[%emt 0:05:00]} 30. Rc2 {[%emt 0:03:28]} f4 {[%emt 0:00:35]} 31. Rec1 {[%emt 0:08:41]} fxe3 {[%emt 0:00:30]} 32. Qxe3 {[%emt 0:00:03]} Rfe8 {[%emt 0:00:38]} 33. Qd3 {[%emt 0:06:04]} Qc4 {[%emt 0:00:04]} 34. Qxc3 {[%emt 0:04:22]} Qxc3 {[%emt 0:00:04]} 35. Rxc3 {[%emt 0:00:09]} Rxc3 {[%emt 0:00:03]} 36. Rxc3 {[%emt 0:00:07]} Re1+ {[%emt 0:00:01]} 37. Kh2 {[%emt 0:00:08]} Rd1 {[%emt 0:00:03]} 38. Rc7 {[%emt 0:00:21]} Rxd4 {[%emt 0:00:05]} 1/2-1/2

[Event "SixDays Budapest IM-A January 2024"]
[Site "Budapest"]
[Date "2024.01.28"]
[Round "3.5"]
[White "Polyik, Peter"]
[Black "Lim, Zhuo Ren"]
[Result "1/2-1/2"]
[ECO "B54"]
[WhiteElo "2289"]
[BlackElo "2218"]
[Annotator "NA RC"]
[PlyCount "40"]
[EventDate "2024.01.26"]
[EventType "tourn"]
[EventCountry "HUN"]
[SourceTitle "playchess.com"]
[Source "ChessBase"]
[SourceQuality "1"]
[TimeControl "5400+30"]

1. e4 {[%emt 0:00:53]} c5 {[%emt 0:00:06]} 2. Nf3 {[%emt 0:00:21]} d6 {[%emt 0:00:14]} 3. d4 {[%emt 0:00:05]} cxd4 {[%emt 0:00:05]} 4. Nxd4 {[%emt 0:00:05]} Nf6 {[%emt 0:00:07]} 5. Bd3 {[%emt 0:00:06]} Nc6 {[%emt 0:00:55]} 6. Nxc6 {[%emt 0:00:13]} bxc6 {[%emt 0:00:04]} 7. O-O {[%emt 0:00:09]} g6 {[%emt 0:01:05]} 8. b3 {[%emt 0:00:17]} Bg7 {[%emt 0:00:12]} 9. Bb2 {[%emt 0:00:06]} O-O {[%emt 0:00:22]} 10. Nc3 {[%emt 0:00:43]} Nd7 {[%emt 0:01:11]} 11. Na4 {[%emt 0:01:07]} Qa5 {[%emt 0:03:20]} 12. Qe1 {[%emt 0:07:46]} Qxe1 {[%emt 0:00:57]} 13. Rfxe1 {[%emt 0:00:16]} Nb6 {[%emt 0:01:45]} 14. Bxg7 {[%emt 0:00:23]} Kxg7 {[%emt 0:00:04]} 15. Nxb6 {[%emt 0:17:50]} axb6 {[%emt 0:00:05]} 16. a4 {[%emt 0:00:05]} c5 {[%emt 0:02:38]} 17. Bc4 {[%emt 0:01:00]} Be6 {[%emt 0:01:10]} 18. Bxe6 {[%emt 0:07:57]} fxe6 {[%emt 0:00:04]} 19. c4 {[%emt 0:00:34]} e5 {[%emt 0:00:51]} 20. f3 {[%emt 0:01:00]} g5 {[%emt 0:01:13]} 1/2-1/2

[Event "SixDays Budapest IM-A January 2024"]
[Site "Budapest"]
[Date "2024.01.29"]
[Round "4.1"]
[White "Kuru, Atilla"]
[Black "Lim, Zhuo Ren"]
[Result "1/2-1/2"]
[ECO "B94"]
[WhiteElo "2220"]
[BlackElo "2218"]
[Annotator "RC"]
[PlyCount "113"]
[EventDate "2024.01.26"]
[EventType "tourn"]
[EventCountry "HUN"]
[SourceTitle "playchess.com"]
[Source "ChessBase"]
[SourceQuality "1"]
[TimeControl "5400+30"]

1. e4 {[%emt 0:11:59]} c5 {[%emt 0:00:11]} 2. Nf3 {[%emt 0:00:03]} d6 {[%emt 0:00:12]} 3. d4 {[%emt 0:00:04]} cxd4 {[%emt 0:00:09]} 4. Nxd4 {[%emt 0:00:04]} Nf6 {[%emt 0:00:05]} 5. Nc3 {[%emt 0:00:04]} a6 {[%emt 0:00:02]} 6. Bg5 {[%emt 0:00:08]} Nbd7 {[%emt 0:00:19]} 7. f4 {[%emt 0:00:09]} Qc7 {[%emt 0:00:34]} 8. Qe2 {[%emt 0:03:48]} e6 {[%emt 0:00:51]} 9. O-O-O {[%emt 0:00:55]} b5 {[%emt 0:00:15]} 10. g4 {[%emt 0:03:49]} Bb7 {[%emt 0:04:08]} 11. Bg2 {[%emt 0:01:13]} Qc4 {[%emt 0:02:03]} 12. Qxc4 {[%emt 0:04:49]} bxc4 {[%emt 0:00:04]} 13. Bf3 {[%emt 0:05:10]} Be7 {[%emt 0:06:36]} 14. Rhe1 {[%emt 0:02:48]} h6 {[%emt 0:04:55]} 15. Bxf6 {[%emt 0:00:21]} gxf6 {[%emt 0:02:32]} 16. Be2 {[%emt 0:02:36]} Rc8 {[%emt 0:00:32]} 17. f5 {[%emt 0:00:27]} e5 {[%emt 0:01:48]} 18. Nf3 {[%emt 0:00:11]} Rg8 {[%emt 0:00:17]} 19. Nd2 {[%emt 0:00:10]} Nb6 {[%emt 0:00:25]} 20. Nf1 {[%emt 0:00:14]} h5 {[%emt 0:00:40]} 21. gxh5 {[%emt 0:01:36]} Bf8 {[%emt 0:00:11]} 22. Bf3 {[%emt 0:00:07]} Bh6+ {[%emt 0:00:37]} 23. Kb1 {[%emt 0:00:12]} Ke7 {[%emt 0:00:17]} 24. Ne3 {[%emt 0:00:35]} Bf4 {[%emt 0:00:33]} 25. Ng4 {[%emt 0:00:57]} Nd7 {[%emt 0:01:40]} 26. Ne3 {[%emt 0:01:22]} Nb6 {[%emt 0:00:39]} 27. Ng4 {[%emt 0:00:13]} Nd7 {[%emt 0:00:09]} 28. Re2 {[%emt 0:02:55]} Rg5 {[%emt 0:01:51]} 29. Ne3 {[%emt 0:00:51]} Nb6 {[%emt 0:00:30]} 30. a4 {[%emt 0:00:50]} Rc5 {[%emt 0:01:50]} 31. Ka2 {[%emt 0:00:51]} Rg8 {[%emt 0:03:34]} 32. Ka3 {[%emt 0:01:04]} Bc6 {[%emt 0:01:01]} 33. Rg2 {[%emt 0:01:19]} Rb8 {[%emt 0:30:18]} 34. Ned5+ {[%emt 0:00:07]} Bxd5 {[%emt 0:00:32]} 35. Nxd5+ {[%emt 0:00:14]} Nxd5 {[%emt 0:00:05]} 36. Rxd5 {[%emt 0:01:47]} Rc7 {[%emt 0:05:08]} 37. c3 {[%emt 0:00:15]} Rcb7 {[%emt 0:00:50]} 38. Rd1 {[%emt 0:00:04]} Bh6 {[%emt 0:04:27]} 39. Ka2 {[%emt 0:00:13]} Rb6 {[%emt 0:01:09]} 40. Rc2 {[%emt 0:00:41]} Rc6 {[%emt 0:01:48]} 41. Kb1 {[%emt 0:00:58]} Rc5 {[%emt 0:00:25]} 42. Rd5 {[%emt 0:00:11]} Rc6 {[%emt 0:01:26]} 43. Rg2 {[%emt 0:00:20]} Rcb6 {[%emt 0:00:20]} 44. Bd1 {[%emt 0:00:09]} Bf4 {[%emt 0:01:13]} 45. h3 {[%emt 0:00:34]} Bg5 {[%emt 0:00:27]} 46. a5 {[%emt 0:01:24]} R6b7 {[%emt 0:00:30]} 47. Ba4 {[%emt 0:00:18]} Rh8 {[%emt 0:00:43]} 48. Bd1 {[%emt 0:01:03]} Rhb8 {[%emt 0:00:05]} 49. Ba4 {[%emt 0:00:40]} Rh8 {[%emt 0:00:04]} 50. Rg1 {[%emt 0:03:01]} Rhb8 {[%emt 0:02:21]} 51. b4 {[%emt 0:01:33]} cxb3 {[%emt 0:00:19]} 52. Rgd1 {[%emt 0:00:05]} Rd8 {[%emt 0:01:32]} 53. Kb2 {[%emt 0:00:13]} Be3 {[%emt 0:00:32]} 54. R5d3 {[%emt 0:01:01]} Bc5 {[%emt 0:02:43]} 55. Rg3 {[%emt 0:00:10]} Rh8 {[%emt 0:00:21]} 56. Bc6 {[%emt 0:01:39]} Rbb8 {[%emt 0:00:36]} 57. Bd5 {[%emt 0:01:07]} 1/2-1/2

[Event "SixDays Budapest IM-A January 2024"]
[Site "Budapest"]
[Date "2024.01.29"]
[Round "4.2"]
[White "Szalay-Ocsak, Bank"]
[Black "Polyik, Peter"]
[Result "0-1"]
[ECO "A01"]
[WhiteElo "2165"]
[BlackElo "2289"]
[Annotator "RC"]
[PlyCount "80"]
[EventDate "2024.01.26"]
[EventType "tourn"]
[EventCountry "HUN"]
[SourceTitle "playchess.com"]
[Source "ChessBase"]
[SourceQuality "1"]
[TimeControl "5400+30"]

1. b3 {[%emt 0:00:03]} e5 {[%emt 0:01:31]} 2. Bb2 {[%emt 0:00:07]} Nc6 {[%emt 0:00:07]} 3. e3 {[%emt 0:00:06]} Nf6 {[%emt 0:00:07]} 4. Nf3 {[%emt 0:00:20]} e4 {[%emt 0:12:07]} 5. Nd4 {[%emt 0:00:16]} h5 {[%emt 0:05:55]} 6. Nxc6 {[%emt 0:13:07]} dxc6 {[%emt 0:00:07]} 7. c4 {[%emt 0:00:43]} Bf5 {[%emt 0:04:00]} 8. Qc2 {[%emt 0:09:09]} h4 {[%emt 0:20:34]} 9. h3 {[%emt 0:00:33]} Rh6 {[%emt 0:10:39]} 10. Nc3 {[%emt 0:03:19]} Qd7 {[%emt 0:00:24]} 11. O-O-O {[%emt 0:01:52]} O-O-O {[%emt 0:00:35]} 12. g4 {[%emt 0:16:57]} hxg3 {[%emt 0:00:23]} 13. fxg3 {[%emt 0:00:07]} Re8 {[%emt 0:09:26]} 14. d3 {[%emt 0:33:53]} Qe6 {[%emt 0:00:28]} 15. d4 {[%emt 0:03:03]} c5 {[%emt 0:05:21]} 16. Ne2 {[%emt 0:05:03]} g5 {[%emt 0:08:56]} 17. d5 {[%emt 0:01:52]} Qd7 {[%emt 0:02:11]} 18. Bg2 {[%emt 0:00:22]} Bd6 {[%emt 0:05:56]} 19. g4 {[%emt 0:00:04]} Bh7 {[%emt 0:00:06]} 20. Rhf1 {[%emt 0:01:03]} Qe7 {[%emt 0:01:42]} 21. Qc3 {[%emt 0:03:18]} Ng8 {[%emt 0:04:32]} 22. Rf2 {[%emt 0:00:46]} f5 {[%emt 0:02:57]} 23. gxf5 {[%emt 0:00:46]} Rf6 {[%emt 0:01:07]} 24. Rdf1 {[%emt 0:00:11]} Ref8 {[%emt 0:00:51]} 25. Kd2 {[%emt 0:05:14]} a6 {[%emt 0:00:42]} 26. a3 {[%emt 0:00:34]} Nh6 {[%emt 0:00:22]} 27. Qc2 {[%emt 0:01:05]} Rxf5 {[%emt 0:00:20]} 28. Rxf5 {[%emt 0:00:00]} Bxf5 {[%emt 0:01:07]} 29. Nc3 {[%emt 0:00:05]} Re8 {[%emt 0:00:24]} 30. Qd1 {[%emt 0:00:45]} Bg6 {[%emt 0:00:28]} 31. Qe2 {[%emt 0:00:26]} Be5 {[%emt 0:00:31]} 32. Kc2 {[%emt 0:00:45]} Qg7 {[%emt 0:00:04]} 33. Rf2 {[%emt 0:00:26]} Kb8 {[%emt 0:00:06]} 34. Qf1 {[%emt 0:00:32]} g4 {[%emt 0:00:40]} 35. Nd1 {[%emt 0:00:33]} Bxb2 {[%emt 0:00:53]} 36. Nxb2 {[%emt 0:00:01]} Nf5 {[%emt 0:00:20]} 37. Nd1 {[%emt 0:00:52]} Nd4+ {[%emt 0:00:53]} 38. exd4 {[%emt 0:00:37]} e3+ {[%emt 0:00:05]} 39. Kc1 {[%emt 0:00:29]} exf2 {[%emt 0:00:36]} 40. Qxf2 {[%emt 0:00:01]} gxh3 {[%emt 0:00:13]} 0-1

[Event "SixDays Budapest IM-A January 2024"]
[Site "Budapest"]
[Date "2024.01.29"]
[Round "4.3"]
[White "Hacker, Jonas"]
[Black "Vetokhina, Sofia"]
[Result "1-0"]
[ECO "C50"]
[WhiteElo "2420"]
[BlackElo "2020"]
[Annotator "TA"]
[PlyCount "69"]
[EventDate "2024.01.26"]
[EventType "tourn"]
[EventCountry "HUN"]
[SourceTitle "playchess.com"]
[Source "ChessBase"]
[SourceQuality "1"]
[TimeControl "5400+30"]

{[%evp 10,69,25,26,12,7,9,0,9,0,4,0,40,31,90,43,82,26,29,50,48,37,70,6,29,25,20,0,19,7,26,0,64,0,0,0,31,28,140,133,139,156,178,205,188,189,195,201,228,238,246,240,722,407,1178,1150,1069,813,772,753,866,873]} 1. e4 {[%emt 0:00:03]} e5 {[%emt 0:00:15]} 2. Nf3 {[%emt 0:00:06]} Nc6 {[%emt 0:00:07]} 3. Bc4 {[%emt 0:00:04]} Nf6 {[%emt 0:00:10]} 4. d3 {[%emt 0:00:33]} Bc5 {[%emt 0:00:25]} 5. O-O {[%emt 0:00:58]} d6 {[%emt 0:02:33]} 6. c3 {[%emt 0:01:00]} a5 {[%emt 0:06:11]} 7. h3 {[%emt 0:07:20]} O-O {[%emt 0:04:01]} 8. Bb3 {[%emt 0:02:49]} Be6 {[%emt 0:05:49] The position is equal.} 9. Bc2 {[%emt 0:01:54] [#] aiming for d4.} Bb6 {[%emt 0:06:42]} 10. d4 {[%emt 0:05:20]} Bc4 {[%emt 0:03:03]} 11. Re1 {[%emt 0:02:25]} Nd7 {[%emt 0:11:36]} (11... Re8 $14) 12. Be3 {[%emt 0:09:47]} ({White should try} 12. d5 $16) 12... exd4 {[%emt 0:10:10]} 13. Nxd4 {[%emt 0:03:25]} ({Better is} 13. cxd4 $16 Nb4 14. Nc3) 13... Qf6 {[%emt 0:06:49]} 14. Nd2 {[%emt 0:05:10]} Ba6 {[%emt 0:00:26]} 15. N2f3 {[%emt 0:04:08]} h6 {[%emt 0:07:00] Dodges Bg5} 16. Ba4 {[%emt 0:08:44]} ({White should play} 16. Nf5 $14) 16... Nce5 {[%emt 0:01:39]} 17. Bxd7 {[%emt 0:00:37]} Nxd7 {[%emt 0:00:03]} 18. Nf5 {[%emt 0:00:29]} Bxe3 {[%emt 0:03:31]} 19. Rxe3 {[%emt 0:00:36]} Kh7 {[%emt 0:04:50]} 20. Nh2 {[%emt 0:02:54]} Ne5 {[%emt 0:02:48]} (20... Rae8 $11) 21. Rg3 {[%emt 0:03:11]} (21. f4 $1 $14 Ng6 22. Ng4) 21... g6 $11 {[%emt 0:05:47]} 22. Ne3 {[%emt 0:00:57]} c6 {[%emt 0:02:02]} 23. Neg4 {[%emt 0:06:20]} Nxg4 {[%emt 0:00:21]} (23... Qf4 $1 $11 {keeps the balance.}) 24. Nxg4 $16 {[%emt 0:00:30][%cal Bh2g4,Bg4e3,Be3f5,Bf5d4,Bd4e6][%mdl 32]} Qe6 {[%emt 0:01:42][%cal Oh6h5]} 25. Qd2 $36 {[%emt 0:08:32][%mdl 2048] Black is under strong pressure.} g5 {[%emt 0:00:24]} 26. Rf3 {[%emt 0:06:57]} f6 {[%emt 0:01:16][%cal Oa8e8]} 27. Qc2 {[%emt 0:01:19]} Kg7 {[%emt 0:00:50]} 28. Ne3 {[%emt 0:00:39]} h5 {[%emt 0:05:18]} 29. Nf5+ {[%emt 0:03:59]} Kf7 {[%emt 0:00:21]} 30. Nd4 {[%emt 0:04:45]} Qc4 {[%emt 0:01:22] [#]} (30... Qe7 31. h4 Rae8) 31. e5 {[%emt 0:03:38][%cal Be4e5,Be5f6][%mdl 32]} Ke7 {[%emt 0:05:13]} (31... dxe5 $142 32. Qh7+ Ke8) 32. exf6+ $18 {[%emt 0:02:04] White is clearly winning.} Kd7 {[%emt 0:00:49]} 33. Qf5+ {[%emt 0:00:15]} Kc7 {[%emt 0:00:27]} 34. b3 {[%emt 0:02:02]} Qf7 {[%emt 0:00:38]} 35. Ne6+ {[%emt 0:00:15] Weighted Error Value: White=0.33/Black=0.24 (precise) .  Mistake:       	White=4     	Black=5      Inaccurate:     	White=2     	Black=4      OK:         	White=8     	Black=6      Best:        	White=1     	Black=2} 1-0

[Event "SixDays Budapest IM-A January 2024"]
[Site "Budapest"]
[Date "2024.01.29"]
[Round "4.5"]
[White "Cieslak, Patryk"]
[Black "Orso, Miklos"]
[Result "1/2-1/2"]
[ECO "B32"]
[WhiteElo "2284"]
[BlackElo "2172"]
[Annotator "RC"]
[PlyCount "47"]
[EventDate "2024.01.26"]
[EventType "tourn"]
[EventCountry "HUN"]
[SourceTitle "playchess.com"]
[Source "ChessBase"]
[SourceQuality "1"]
[TimeControl "5400+30"]

1. e4 {[%emt 0:01:08]} c5 {[%emt 0:02:51]} 2. Nf3 {[%emt 0:00:50]} Nc6 {[%emt 0:00:15]} 3. d4 {[%emt 0:00:02]} cxd4 {[%emt 0:00:14]} 4. Nxd4 {[%emt 0:00:04]} e5 {[%emt 0:00:12]} 5. Nb5 {[%emt 0:00:04]} d6 {[%emt 0:00:08]} 6. N1c3 {[%emt 0:00:05]} a6 {[%emt 0:00:09]} 7. Na3 {[%emt 0:00:02]} Be6 {[%emt 0:00:11]} 8. Nc4 {[%emt 0:00:17]} Rb8 {[%emt 0:00:07]} 9. Ne3 {[%emt 0:06:24]} Nf6 {[%emt 0:01:30]} 10. Ned5 {[%emt 0:05:40]} Bxd5 {[%emt 0:16:11]} 11. exd5 {[%emt 0:00:05]} Nd4 {[%emt 0:00:13]} 12. Be3 {[%emt 0:20:49]} Nf5 {[%emt 0:00:35]} 13. Bg5 {[%emt 0:00:46]} Be7 {[%emt 0:00:36]} 14. Bxf6 {[%emt 0:09:21]} Bxf6 {[%emt 0:00:13]} 15. Bd3 {[%emt 0:00:53]} Ne7 {[%emt 0:02:45]} 16. O-O {[%emt 0:02:07]} g6 {[%emt 0:05:09]} 17. Ne4 {[%emt 0:03:27]} Bg7 {[%emt 0:02:17]} 18. c4 {[%emt 0:00:04]} O-O {[%emt 0:01:33]} 19. Qb3 {[%emt 0:07:53]} Nc8 {[%emt 0:12:32]} 20. f3 {[%emt 0:08:36]} f5 {[%emt 0:02:41]} 21. Nf2 {[%emt 0:02:32]} Kh8 {[%emt 0:05:39]} 22. Kh1 {[%emt 0:01:25]} Ne7 {[%emt 0:07:04]} 23. Rad1 {[%emt 0:02:23]} Ng8 {[%emt 0:02:45]} 24. Qc2 {[%emt 0:03:09]} 1/2-1/2